[Event "Torneo Nuevo Centro. Jornada 10"]
[Site "Chess.com"]
[Date "2020.08.21"]
[Round "2"]
[White "Cantero Navarro, Antonio"]
[Black "Garcia, Jhoel"]
[Result "1-0"]
[WhiteElo "1915"]
[BlackElo "2406"]
[TimeControl "180+2"]
[EndTime "10:51:07 PDT"]
[Termination "Victoria de aprendis65 por abandono"]

1. e4 {[%clk 0:03:01.9]} 1... c5 {[%clk 0:02:59.8]} 2. Nf3 {[%clk 0:03:02.1]}
2... Nc6 {[%clk 0:02:58.1]} 3. Bb5 {[%clk 0:03:01.6]} 3... g6 {[%clk 0:02:58.1]}
4. O-O {[%clk 0:03:02]} 4... Bg7 {[%clk 0:02:58.6]} 5. Re1 {[%clk 0:03:00.9]}
5... Qb6 {[%clk 0:02:56.5]} 6. Qe2 {[%clk 0:02:31.2]} 6... a6 {[%clk 0:02:45.1]}
7. Bxc6 {[%clk 0:02:30.4]} 7... Qxc6 {[%clk 0:02:45.3]} 8. Nc3 {[%clk
0:02:29.2]} 8... e6 {[%clk 0:02:40.4]} 9. e5 {[%clk 0:02:22]} 9... d5 {[%clk
0:02:36.3]} 10. d4 {[%clk 0:02:10.8]} 10... Ne7 {[%clk 0:02:27.5]} 11. dxc5
{[%clk 0:02:04.6]} 11... Qxc5 {[%clk 0:02:27]} 12. Be3 {[%clk 0:01:56.7]} 12...
Qc7 {[%clk 0:02:26.8]} 13. Na4 {[%clk 0:01:42.9]} 13... b5 {[%clk 0:02:24.9]}
14. Nc5 {[%clk 0:01:24.8]} 14... O-O {[%clk 0:01:56.8]} 15. Bd4 {[%clk
0:01:04.3]} 15... Nc6 {[%clk 0:01:38.2]} 16. c3 {[%clk 0:00:59.1]} 16... Bd7
{[%clk 0:01:28.9]} 17. h4 {[%clk 0:00:45.5]} 17... a5 {[%clk 0:00:43.6]} 18. h5
{[%clk 0:00:45.8]} 18... b4 {[%clk 0:00:41.6]} 19. Qe3 {[%clk 0:00:24.3]} 19...
bxc3 {[%clk 0:00:39.8]} 20. bxc3 {[%clk 0:00:24.3]} 20... a4 {[%clk 0:00:27.6]}
21. h6 {[%clk 0:00:20.7]} 21... Bh8 {[%clk 0:00:27.8]} 22. Rab1 {[%clk
0:00:21.2]} 22... Rfb8 {[%clk 0:00:26.9]} 23. g3 {[%clk 0:00:16.2]} 23... Be8
{[%clk 0:00:27.8]} 24. Kg2 {[%clk 0:00:14.3]} 24... Ne7 {[%clk 0:00:29.2]} 25.
Qd3 {[%clk 0:00:10.9]} 25... Nf5 {[%clk 0:00:30.1]} 26. Rxb8 {[%clk 0:00:09.9]}
26... Rxb8 {[%clk 0:00:30.3]} 27. Rb1 {[%clk 0:00:09.6]} 27... Rxb1 {[%clk
0:00:27.2]} 28. Qxb1 {[%clk 0:00:10.2]} 28... Ne7 {[%clk 0:00:26]} 29. Qb4
{[%clk 0:00:08.9]} 29... Nc6 {[%clk 0:00:20.8]} 30. Qb7 {[%clk 0:00:06.3]} 30...
Qxb7 {[%clk 0:00:20.9]} 31. Nxb7 {[%clk 0:00:06.9]} 31... Nxd4 {[%clk
0:00:22.4]} 32. cxd4 {[%clk 0:00:06.6]} 32... f6 {[%clk 0:00:23.8]} 33. Nd6
{[%clk 0:00:03.5]} 33... Bd7 {[%clk 0:00:23]} 34. Kf1 {[%clk 0:00:04.8]} 34...
fxe5 {[%clk 0:00:23.7]} 35. dxe5 {[%clk 0:00:05.3]} 35... Kf8 {[%clk 0:00:23.3]}
36. Ke2 {[%clk 0:00:06.2]} 36... Ke7 {[%clk 0:00:24.8]} 37. Kd2 {[%clk 0:00:07]}
37... Bxe5 {[%clk 0:00:26.1]} 38. Nxe5 {[%clk 0:00:05.4]} 38... Kxd6 {[%clk
0:00:27.4]} 39. Nf7+ {[%clk 0:00:05.5]} 39... Ke7 {[%clk 0:00:27.7]} 40. Ng5
{[%clk 0:00:06.1]} 40... e5 {[%clk 0:00:27.8]} 41. Nxh7 {[%clk 0:00:06.6]} 41...
Kf7 {[%clk 0:00:21.9]} 42. Ng5+ {[%clk 0:00:06.7]} 42... Kg8 {[%clk 0:00:23.3]}
43. Kc3 {[%clk 0:00:05.3]} 43... d4+ {[%clk 0:00:23.3]} 44. Kc4 {[%clk 0:00:05]}
44... Be8 {[%clk 0:00:22.4]} 45. Kd3 {[%clk 0:00:03.2]} 45... Bb5+ {[%clk
0:00:21.6]} 46. Ke4 {[%clk 0:00:02.9]} 46... Bc6+ {[%clk 0:00:22.6]} 47. Kd3
{[%clk 0:00:02.7]} 47... Bd5 {[%clk 0:00:23.2]} 48. a3 {[%clk 0:00:03.1]} 48...
Ba2 {[%clk 0:00:24.3]} 49. Ke4 {[%clk 0:00:02.9]} 49... Bb1+ {[%clk 0:00:24.9]}
50. Kf3 {[%clk 0:00:03.4]} 50... Ba2 {[%clk 0:00:18.3]} 51. Ke2 {[%clk 0:00:04]}
51... Bd5 {[%clk 0:00:17.9]} 52. Kd3 {[%clk 0:00:04.6]} 52... Ba2 {[%clk
0:00:17.7]} 53. f4 {[%clk 0:00:04.6]} 53... Bb1+ {[%clk 0:00:18.1]} 54. Kd2
{[%clk 0:00:05.4]} 54... e4 {[%clk 0:00:19.2]} 55. Ke2 {[%clk 0:00:05.1]} 55...
Bd3+ {[%clk 0:00:19.6]} 56. Kd2 {[%clk 0:00:05.6]} 56... Bb1 {[%clk 0:00:20.6]}
57. g4 {[%clk 0:00:05.7]} 57... e3+ {[%clk 0:00:21.3]} 58. Ke2 {[%clk
0:00:06.5]} 58... Ba2 {[%clk 0:00:22.4]} 59. Kd3 {[%clk 0:00:06.9]} 59... Bb1+
{[%clk 0:00:21.4]} 60. Ke2 {[%clk 0:00:07.3]} 60... Bc2 {[%clk 0:00:20.8]} 61.
Nf3 {[%clk 0:00:07.8]} 61... d3+ {[%clk 0:00:17.9]} 62. Kxe3 {[%clk 0:00:08.8]}
62... Kh7 {[%clk 0:00:18.8]} 63. g5 {[%clk 0:00:09.7]} 63... Kg8 {[%clk
0:00:20]} 64. Ne1 {[%clk 0:00:09.9]} 64... d2 {[%clk 0:00:17.7]} 65. Kxd2 {[%clk
0:00:10.3]} 65... Bf5 {[%clk 0:00:19]} 66. Nd3 {[%clk 0:00:10.6]} 66... Kh7
{[%clk 0:00:20.1]} 67. Nc5 {[%clk 0:00:11]} 67... Kg8 {[%clk 0:00:19]} 68. Kc3
{[%clk 0:00:12.1]} 68... Kh7 {[%clk 0:00:20.9]} 69. Kb4 {[%clk 0:00:13]} 69...
Bc2 {[%clk 0:00:20.5]} 70. Nxa4 {[%clk 0:00:13.6]} 70... Kg8 {[%clk 0:00:19.5]}
71. Nc5 {[%clk 0:00:14]} 1

[Event "Torneo Nuevo Centro. Jornada 10"]
[Site "Chess.com"]
[Date "2020.08.21"]
[Round "3"]
[White "Maestre Soler, Sergio"]
[Black "Méndez Giménez , Néstor Emmanuel"]
[Result "0-1"]
[WhiteElo "921"]
[BlackElo "1238"]
[TimeControl "180+2"]
[EndTime "10:53:29 PDT"]
[Termination "Victoria de NestorMendez8 por abandono"]

1. e4 {[%clk 0:03:01.5]} 1... e6 {[%clk 0:03:00.1]} 2. Nc3 {[%clk 0:02:59.1]}
2... d5 {[%clk 0:02:59.2]} 3. exd5 {[%clk 0:02:59.8]} 3... exd5 {[%clk
0:03:00.1]} 4. Nf3 {[%clk 0:02:59.3]} 4... Nf6 {[%clk 0:02:59.3]} 5. d4 {[%clk
0:02:59]} 5... Nc6 {[%clk 0:02:58.3]} 6. Qe2+ {[%clk 0:02:58.8]} 6... Be7 {[%clk
0:02:58.1]} 7. Bg5 {[%clk 0:02:57.4]} 7... O-O {[%clk 0:02:56.5]} 8. Bxf6 {[%clk
0:02:57.4]} 8... Bxf6 {[%clk 0:02:54.5]} 9. g3 {[%clk 0:02:51.5]} 9... Re8
{[%clk 0:02:54.4]} 10. Bg2 {[%clk 0:02:49.3]} 10... Rxe2+ {[%clk 0:02:53.7]} 11.
Nxe2 {[%clk 0:02:50.2]} 11... Qe7 {[%clk 0:02:53.1]} 12. Nd2 {[%clk 0:02:41.8]}
12... Nxd4 {[%clk 0:02:51.8]} 13. Bf3 {[%clk 0:02:41.9]} 13... Nxf3+ {[%clk
0:02:48.6]} 14. Nxf3 {[%clk 0:02:41.2]} 14... Bg4 {[%clk 0:02:49.6]} 15. Nd4
{[%clk 0:02:38.9]} 15... Bxd4 {[%clk 0:02:49.1]} 16. O-O {[%clk 0:02:38.9]}
16... Qxe2 {[%clk 0:02:43.8]} 0

[Event "Torneo Nuevo Centro. Jornada 10"]
[Site "Chess.com"]
[Date "2020.08.21"]
[Round "3"]
[White "Aguado, Pablo Luis"]
[Black "Leal Uribe, Jhonny Alberto"]
[Result "0-1"]
[WhiteElo "1942"]
[BlackElo "2453"]
[TimeControl "180+2"]
[EndTime "10:54:13 PDT"]
[Termination "Victoria de jhonnyuribe por jaque mate"]

1. d4 {[%clk 0:03:01.9]} 1... d5 {[%clk 0:02:57.3]} 2. c4 {[%clk 0:03:02]} 2...
dxc4 {[%clk 0:02:57.7]} 3. e3 {[%clk 0:03:02.2]} 3... e6 {[%clk 0:02:58.3]} 4.
Bxc4 {[%clk 0:03:01.8]} 4... Nf6 {[%clk 0:02:58.1]} 5. Nc3 {[%clk 0:03:02.7]}
5... a6 {[%clk 0:02:59.4]} 6. Nf3 {[%clk 0:03:02.7]} 6... b5 {[%clk 0:03:00.6]}
7. Bd3 {[%clk 0:03:03.8]} 7... Bb7 {[%clk 0:03:01.7]} 8. O-O {[%clk 0:03:04.4]}
8... Nbd7 {[%clk 0:03:02.2]} 9. e4 {[%clk 0:03:03.4]} 9... b4 {[%clk 0:03:03]}
10. Ne2 {[%clk 0:03:00.2]} 10... Nxe4 {[%clk 0:03:01.8]} 11. Qc2 {[%clk
0:02:59.3]} 11... Nef6 {[%clk 0:02:56.6]} 12. Bf4 {[%clk 0:02:59.9]} 12... c5
{[%clk 0:02:57.4]} 13. dxc5 {[%clk 0:02:55.8]} 13... Nxc5 {[%clk 0:02:57.9]} 14.
Rfd1 {[%clk 0:02:56.6]} 14... Nxd3 {[%clk 0:02:59.1]} 15. Rxd3 {[%clk
0:02:56.5]} 15... Qb6 {[%clk 0:02:57.9]} 16. Rc1 {[%clk 0:02:49.9]} 16... Be7
{[%clk 0:02:54.8]} 17. Qc7 {[%clk 0:02:49.3]} 17... Qxc7 {[%clk 0:02:48.2]} 18.
Rxc7 {[%clk 0:02:51.2]} 18... Bxf3 {[%clk 0:02:49.6]} 19. Rxf3 {[%clk
0:02:51.3]} 19... Nd5 {[%clk 0:02:51.1]} 20. Rb7 {[%clk 0:02:49.1]} 20... O-O-O
{[%clk 0:02:39]} 21. Rb8+ {[%clk 0:02:40.9]} 21... Kd7 {[%clk 0:02:39.8]} 22.
Rb7+ {[%clk 0:02:42.4]} 22... Kc6 {[%clk 0:02:38.7]} 23. Ra7 {[%clk 0:02:39.2]}
23... Kb6 {[%clk 0:02:32.1]} 24. Be3+ {[%clk 0:02:35.9]} 24... Nxe3 {[%clk
0:02:29.1]} 25. Rxe7 {[%clk 0:02:37.2]} 25... Rd1# {[%clk 0:02:28.9]} 0

[Event "Torneo Nuevo Centro. Jornada 10"]
[Site "Chess.com"]
[Date "2020.08.21"]
[Round "3"]
[White "Salvador Buiza, Victor"]
[Black "Soliva Ruiz, Ramon"]
[Result "1-0"]
[WhiteElo "1883"]
[BlackElo "1504"]
[TimeControl "180+2"]
[EndTime "10:55:00 PDT"]
[Termination "Victoria de TERROROSCURO666 por abandono"]

1. e4 {[%clk 0:03:01.9]} 1... c5 {[%clk 0:02:59.5]} 2. Nf3 {[%clk 0:03:01.7]}
2... e6 {[%clk 0:03:00.6]} 3. c3 {[%clk 0:03:01.5]} 3... Nf6 {[%clk 0:03:00.6]}
4. d3 {[%clk 0:03:00]} 4... Nc6 {[%clk 0:03:00.9]} 5. Bg5 {[%clk 0:03:00.3]}
5... Be7 {[%clk 0:03:00.9]} 6. Be2 {[%clk 0:03:00.5]} 6... Ng4 {[%clk 0:02:50]}
7. Bxe7 {[%clk 0:02:58.7]} 7... Qxe7 {[%clk 0:02:50.3]} 8. O-O {[%clk
0:02:59.6]} 8... Nge5 {[%clk 0:02:45.8]} 9. Nxe5 {[%clk 0:02:58]} 9... Nxe5
{[%clk 0:02:46.3]} 10. f4 {[%clk 0:02:58.4]} 10... Nc6 {[%clk 0:02:45.3]} 11.
Nd2 {[%clk 0:02:55]} 11... d6 {[%clk 0:02:42.8]} 12. Bg4 {[%clk 0:02:54.3]}
12... Bd7 {[%clk 0:02:38.6]} 13. a4 {[%clk 0:02:54]} 13... O-O-O {[%clk
0:02:20.1]} 14. b4 {[%clk 0:02:53.6]} 14... cxb4 {[%clk 0:02:10]} 15. cxb4
{[%clk 0:02:53.9]} 15... Nxb4 {[%clk 0:02:09.6]} 16. Qb3 {[%clk 0:02:48.7]}
16... a5 {[%clk 0:01:38.6]} 17. Nc4 {[%clk 0:02:46.4]} 17... e5 {[%clk
0:01:18.6]} 18. Nxa5 {[%clk 0:02:43.3]} 18... Bxg4 {[%clk 0:01:18.1]} 19. Qxb4
{[%clk 0:02:38.8]} 1

[Event "Torneo Nuevo Centro. Jornada 10"]
[Site "Chess.com"]
[Date "2020.08.21"]
[Round "3"]
[White "Fitzpatrick Dimas, Kevin"]
[Black "Ortiz Benavent, Alba"]
[Result "0-1"]
[WhiteElo "852"]
[BlackElo "1209"]
[TimeControl "180+2"]
[EndTime "10:55:18 PDT"]
[Termination "Victoria de or20 por jaque mate"]

1. e4 {[%clk 0:03:01.9]} 1... e5 {[%clk 0:02:59.9]} 2. Bc4 {[%clk 0:02:59.1]}
2... Nf6 {[%clk 0:02:53.5]} 3. Nc3 {[%clk 0:02:56.1]} 3... Bc5 {[%clk
0:02:52.9]} 4. Nf3 {[%clk 0:02:49.1]} 4... d6 {[%clk 0:02:53.5]} 5. d3 {[%clk
0:02:40]} 5... Nc6 {[%clk 0:02:53.6]} 6. Bg5 {[%clk 0:02:38.6]} 6... Bg4 {[%clk
0:02:51]} 7. h3 {[%clk 0:02:31.1]} 7... Bh5 {[%clk 0:02:48.7]} 8. O-O {[%clk
0:02:28.4]} 8... h6 {[%clk 0:02:48.4]} 9. Bxf6 {[%clk 0:02:16.8]} 9... Qxf6
{[%clk 0:02:48.3]} 10. Re1 {[%clk 0:02:09.4]} 10... Bxf3 {[%clk 0:02:46.9]} 11.
gxf3 {[%clk 0:02:00]} 11... Qg5+ {[%clk 0:02:35.7]} 12. Kh2 {[%clk 0:01:48]}
12... Qf4+ {[%clk 0:02:34.4]} 13. Kh1 {[%clk 0:01:46.5]} 13... Qh4 {[%clk
0:02:33.1]} 14. Kg2 {[%clk 0:01:45.5]} 14... Ne7 {[%clk 0:02:22.8]} 15. Nb5
{[%clk 0:01:42.1]} 15... Bb6 {[%clk 0:02:19.3]} 16. Qd2 {[%clk 0:01:32.8]} 16...
Ng6 {[%clk 0:02:15.2]} 17. Qb4 {[%clk 0:01:23.7]} 17... Nf4+ {[%clk 0:02:13.4]}
18. Kf1 {[%clk 0:01:22.6]} 18... Qxf2# {[%clk 0:02:10.5]} 0

[Event "Torneo Nuevo Centro. Jornada 10"]
[Site "Chess.com"]
[Date "2020.08.21"]
[Round "3"]
[White "Garcia, Jhoel"]
[Black "Ledezma Fortes, Jose Manuel"]
[Result "1-0"]
[WhiteElo "2407"]
[BlackElo "1795"]
[TimeControl "180+2"]
[EndTime "10:55:37 PDT"]
[Termination "Victoria de shoels por abandono"]

1. b3 {[%clk 0:02:58]} 1... c6 {[%clk 0:03:00.6]} 2. Bb2 {[%clk 0:02:59.5]} 2...
d5 {[%clk 0:03:00.8]} 3. e3 {[%clk 0:03:01]} 3... Bf5 {[%clk 0:03:01.3]} 4. d4
{[%clk 0:03:02.2]} 4... Bg6 {[%clk 0:03:01.3]} 5. c4 {[%clk 0:03:03.3]} 5... e6
{[%clk 0:03:00.8]} 6. Nf3 {[%clk 0:03:04.8]} 6... f6 {[%clk 0:03:01.4]} 7. Nh4
{[%clk 0:03:05.6]} 7... Ne7 {[%clk 0:03:01.4]} 8. Nxg6 {[%clk 0:03:06.2]} 8...
Nxg6 {[%clk 0:03:01.2]} 9. Bd3 {[%clk 0:03:07.8]} 9... Bd6 {[%clk 0:02:55.4]}
10. Qh5 {[%clk 0:03:08.4]} 10... Kf7 {[%clk 0:02:52.1]} 11. Nd2 {[%clk
0:03:06.4]} 11... f5 {[%clk 0:02:49]} 12. Nf3 {[%clk 0:03:03.6]} 12... Qf6
{[%clk 0:02:47.2]} 13. Ne5+ {[%clk 0:02:58.2]} 13... Bxe5 {[%clk 0:02:46]} 14.
dxe5 {[%clk 0:02:59.6]} 14... Qh4 {[%clk 0:02:46.1]} 15. Qe2 {[%clk 0:02:59.8]}
15... Nd7 {[%clk 0:02:44.3]} 16. g3 {[%clk 0:02:52]} 16... Qh3 {[%clk
0:02:41.8]} 17. f4 {[%clk 0:02:53.1]} 17... Nc5 {[%clk 0:02:37.2]} 18. O-O-O
{[%clk 0:02:53.4]} 18... Nxd3+ {[%clk 0:02:37.6]} 19. Rxd3 {[%clk 0:02:52.6]}
19... h5 {[%clk 0:02:38.2]} 20. Rg1 {[%clk 0:02:42.6]} 20... Rhd8 {[%clk
0:02:37.1]} 21. c5 {[%clk 0:01:58.9]} 21... Rh8 {[%clk 0:02:28.8]} 22. Kb1
{[%clk 0:01:57.4]} 22... h4 {[%clk 0:02:28.1]} 23. g4 {[%clk 0:01:58.1]} 23...
fxg4 {[%clk 0:02:21.6]} 24. Rxg4 {[%clk 0:01:57.8]} 24... Rh6 {[%clk 0:02:17.6]}
25. e4 {[%clk 0:01:56.2]} 25... Qxd3+ {[%clk 0:02:08.5]} 26. Qxd3 {[%clk
0:01:56.5]} 26... Rah8 {[%clk 0:02:06.8]} 27. f5 {[%clk 0:01:56.9]} 27... exf5
{[%clk 0:02:06.3]} 28. exf5 {[%clk 0:01:56.9]} 28... Ne7 {[%clk 0:02:06.6]} 29.
e6+ {[%clk 0:01:58.2]} 29... Ke8 {[%clk 0:02:06.7]} 30. Rxg7 {[%clk 0:01:55.1]}
1

[Event "Torneo Nuevo Centro. Jornada 10"]
[Site "Chess.com"]
[Date "2020.08.21"]
[Round "3"]
[White "Conejero Martínez, Víctor"]
[Black "Hassomal Daswani, Birjkumar"]
[Result "1-0"]
[WhiteElo "1416"]
[BlackElo "1820"]
[TimeControl "180+2"]
[EndTime "10:55:43 PDT"]
[Termination "Victoria de Camelocota20 por abandono"]

1. d4 {[%clk 0:03:01.9]} 1... Nf6 {[%clk 0:02:59.6]} 2. c4 {[%clk 0:03:01.3]}
2... c5 {[%clk 0:02:59.4]} 3. Nc3 {[%clk 0:02:59.2]} 3... cxd4 {[%clk
0:02:59.9]} 4. Qxd4 {[%clk 0:02:59.6]} 4... Nc6 {[%clk 0:03:01.2]} 5. Qd1 {[%clk
0:03:00.2]} 5... g6 {[%clk 0:03:02.5]} 6. e3 {[%clk 0:03:01.2]} 6... Bg7 {[%clk
0:03:03.9]} 7. Nf3 {[%clk 0:02:57.9]} 7... d6 {[%clk 0:03:05]} 8. Bd2 {[%clk
0:02:50.1]} 8... O-O {[%clk 0:03:05.5]} 9. Be2 {[%clk 0:02:50.3]} 9... Bd7
{[%clk 0:03:06]} 10. O-O {[%clk 0:02:51.1]} 10... a5 {[%clk 0:03:05.4]} 11. Qc1
{[%clk 0:02:51.1]} 11... a4 {[%clk 0:03:06.1]} 12. a3 {[%clk 0:02:40]} 12... Na5
{[%clk 0:03:05.3]} 13. e4 {[%clk 0:02:33.4]} 13... Nb3 {[%clk 0:03:05.4]} 14.
Qc2 {[%clk 0:02:25.7]} 14... Nxa1 {[%clk 0:03:05.3]} 15. Rxa1 {[%clk 0:02:27.3]}
15... Bc6 {[%clk 0:03:06.2]} 16. Nd5 {[%clk 0:02:18.3]} 16... Rc8 {[%clk
0:03:04.5]} 17. b3 {[%clk 0:01:50]} 17... Nxd5 {[%clk 0:03:03.5]} 18. exd5
{[%clk 0:01:49.8]} 18... Bxd5 {[%clk 0:03:00.8]} 19. Qc1 {[%clk 0:01:43.6]}
19... Bxf3 {[%clk 0:03:00.6]} 20. Bxf3 {[%clk 0:01:43.6]} 20... Bxa1 {[%clk
0:03:01.7]} 21. Qxa1 {[%clk 0:01:42.6]} 21... axb3 {[%clk 0:03:02.4]} 22. Bh6
{[%clk 0:01:42.9]} 22... f6 {[%clk 0:03:02.3]} 23. Bxb7 {[%clk 0:01:42.1]} 23...
Rxc4 {[%clk 0:03:02.4]} 24. Bd5+ {[%clk 0:01:41.6]} 24... Rf7 {[%clk 0:02:59.2]}
25. Bxc4 {[%clk 0:01:41.6]} 25... Qb6 {[%clk 0:02:58.6]} 26. Bxf7+ {[%clk
0:01:40.6]} 26... Kxf7 {[%clk 0:02:59.1]} 27. Qb2 {[%clk 0:01:38.1]} 27... Qb5
{[%clk 0:02:57.4]} 28. f3 {[%clk 0:01:29.7]} 28... g5 {[%clk 0:02:56.7]} 29. h4
{[%clk 0:01:28.5]} 29... Kg6 {[%clk 0:02:55.4]} 30. hxg5 {[%clk 0:01:29.2]}
30... fxg5 {[%clk 0:02:56.2]} 31. Qg7+ {[%clk 0:01:28.8]} 31... Kf5 {[%clk
0:02:50.2]} 32. Qxg5+ {[%clk 0:01:23.3]} 32... Ke6 {[%clk 0:02:50.3]} 33. Qxb5
{[%clk 0:01:23.4]} 1

[Event "Torneo Nuevo Centro. Jornada 10"]
[Site "Chess.com"]
[Date "2020.08.21"]
[Round "3"]
[White "Blanco Solaz, Ramón"]
[Black "Sos Andreu, Eric"]
[Result "0-1"]
[WhiteElo "2005"]
[BlackElo "2521"]
[TimeControl "180+2"]
[EndTime "10:56:02 PDT"]
[Termination "Victoria de ericovski por abandono"]

1. c4 {[%clk 0:03:01.9]} 1... Nf6 {[%clk 0:02:59.9]} 2. g3 {[%clk 0:03:03.1]}
2... g6 {[%clk 0:02:59.2]} 3. Bg2 {[%clk 0:03:04]} 3... Bg7 {[%clk 0:03:00]} 4.
Nc3 {[%clk 0:03:05.4]} 4... O-O {[%clk 0:03:01.1]} 5. e4 {[%clk 0:03:06.6]} 5...
c5 {[%clk 0:03:01.9]} 6. Nge2 {[%clk 0:03:08]} 6... d6 {[%clk 0:03:03.2]} 7. d3
{[%clk 0:03:09.4]} 7... Nc6 {[%clk 0:03:04.5]} 8. h3 {[%clk 0:03:09.1]} 8... a6
{[%clk 0:03:05.5]} 9. O-O {[%clk 0:03:05.9]} 9... Rb8 {[%clk 0:03:06.7]} 10. a4
{[%clk 0:03:07]} 10... Ne8 {[%clk 0:03:07.1]} 11. f4 {[%clk 0:03:04.9]} 11...
Nc7 {[%clk 0:03:06.1]} 12. Kh2 {[%clk 0:02:42.5]} 12... Ne6 {[%clk 0:03:04.4]}
13. Be3 {[%clk 0:02:42.4]} 13... Ned4 {[%clk 0:03:02.4]} 14. g4 {[%clk
0:02:32.8]} 14... Qb6 {[%clk 0:02:45.9]} 15. Rb1 {[%clk 0:02:29.7]} 15... Qb3
{[%clk 0:02:38.9]} 16. Ng3 {[%clk 0:02:17.2]} 16... Qxd1 {[%clk 0:02:33.6]} 17.
Rfxd1 {[%clk 0:02:18.1]} 17... b5 {[%clk 0:02:33.7]} 18. axb5 {[%clk 0:02:18.6]}
18... axb5 {[%clk 0:02:35.6]} 19. cxb5 {[%clk 0:02:08.6]} 19... Nxb5 {[%clk
0:02:35.8]} 20. Nce2 {[%clk 0:01:56.9]} 20... Nbd4 {[%clk 0:02:28.9]} 21. Bxd4
{[%clk 0:01:56.9]} 21... Nxd4 {[%clk 0:02:29.6]} 22. Nxd4 {[%clk 0:01:57]} 22...
Bxd4 {[%clk 0:02:31.5]} 23. f5 {[%clk 0:01:58.1]} 23... Be5 {[%clk 0:02:31.8]}
24. Rg1 {[%clk 0:01:56.4]} 24... Ba6 {[%clk 0:02:28.5]} 25. Bf1 {[%clk 0:01:57]}
25... Rb3 {[%clk 0:02:27.6]} 26. Kh1 {[%clk 0:01:57]} 26... Bxd3 {[%clk
0:02:25.3]} 27. Bxd3 {[%clk 0:01:56]} 27... Rxd3 {[%clk 0:02:27.2]} 28. Ne2
{[%clk 0:01:51.8]} 28... Rxh3+ {[%clk 0:02:26.8]} 29. Kg2 {[%clk 0:01:52.4]}
29... Rb3 {[%clk 0:02:27.3]} 30. Nc3 {[%clk 0:01:45]} 30... Rfb8 {[%clk
0:02:22.6]} 31. Nd1 {[%clk 0:01:38]} 31... Bxb2 {[%clk 0:02:21.5]} 32. Nxb2
{[%clk 0:01:35.4]} 32... Rxb2+ {[%clk 0:02:23.4]} 33. Kf3 {[%clk 0:01:32.3]}
33... Rxb1 {[%clk 0:02:24.1]} 0

[Event "Torneo Nuevo Centro. Jornada 10"]
[Site "Chess.com"]
[Date "2020.08.21"]
[Round "3"]
[White "Ainsa Jimenez, Lucas"]
[Black "Vicent Lázaro, Elena"]
[Result "1-0"]
[WhiteElo "1149"]
[BlackElo "654"]
[TimeControl "180+2"]
[EndTime "10:56:12 PDT"]
[Termination "Victoria de ainsaluck por jaque mate"]

1. e4 {[%clk 0:03:01.9]} 1... e6 {[%clk 0:02:55.8]} 2. d4 {[%clk 0:03:01.6]}
2... c5 {[%clk 0:02:53.8]} 3. dxc5 {[%clk 0:02:58.8]} 3... Bxc5 {[%clk
0:02:53.6]} 4. Nc3 {[%clk 0:02:58.7]} 4... Qf6 {[%clk 0:02:52.9]} 5. Nf3 {[%clk
0:02:56.4]} 5... g6 {[%clk 0:02:52.5]} 6. Bg5 {[%clk 0:02:55.8]} 6... Qg7 {[%clk
0:02:45.1]} 7. e5 {[%clk 0:02:55]} 7... f6 {[%clk 0:02:43.1]} 8. exf6 {[%clk
0:02:54.4]} 8... Nxf6 {[%clk 0:02:41.7]} 9. Bb5 {[%clk 0:02:48.1]} 9... a6
{[%clk 0:02:34.3]} 10. Bc4 {[%clk 0:02:46.4]} 10... O-O {[%clk 0:02:28.9]} 11.
O-O {[%clk 0:02:45]} 11... Nc6 {[%clk 0:02:19.3]} 12. Re1 {[%clk 0:02:41.3]}
12... Bd6 {[%clk 0:02:19.1]} 13. Ne4 {[%clk 0:02:40.2]} 13... Nxe4 {[%clk
0:02:18.4]} 14. Rxe4 {[%clk 0:02:39.6]} 14... Bb8 {[%clk 0:02:18.9]} 15. Re1
{[%clk 0:02:35.2]} 15... h6 {[%clk 0:02:13.8]} 16. Be3 {[%clk 0:02:29.4]} 16...
Qf6 {[%clk 0:02:07.4]} 17. Bxh6 {[%clk 0:02:21.3]} 17... Rd8 {[%clk 0:01:58.8]}
18. Bg5 {[%clk 0:02:20.3]} 18... Qh8 {[%clk 0:01:55.7]} 19. Bxd8 {[%clk
0:02:18.3]} 19... g5 {[%clk 0:01:50.2]} 20. Bxg5 {[%clk 0:02:15.7]} 20... b5
{[%clk 0:01:46.4]} 21. Bd3 {[%clk 0:02:15.2]} 21... Bb7 {[%clk 0:01:43.5]} 22.
Re4 {[%clk 0:02:11.6]} 22... Nb4 {[%clk 0:01:40.7]} 23. Rg4 {[%clk 0:02:04.5]}
23... Bxf3 {[%clk 0:01:37.2]} 24. Qxf3 {[%clk 0:02:02.5]} 24... Qxh2+ {[%clk
0:01:36.2]} 25. Kf1 {[%clk 0:02:02.5]} 25... Qh1+ {[%clk 0:01:35.7]} 26. Ke2
{[%clk 0:02:02.8]} 26... Qxa1 {[%clk 0:01:33.5]} 27. Be7+ {[%clk 0:01:59.8]}
27... Kh8 {[%clk 0:01:24.3]} 28. Qh3# {[%clk 0:02:00.1]} 1

[Event "Torneo Nuevo Centro. Jornada 10"]
[Site "Chess.com"]
[Date "2020.08.21"]
[Round "3"]
[White "Granero Roca, Antonio"]
[Black "Iravedra Ainkov, Francisco"]
[Result "1-0"]
[WhiteElo "2504"]
[BlackElo "1809"]
[TimeControl "180+2"]
[EndTime "10:56:26 PDT"]
[Termination "Victoria de Somtor por abandono"]

1. e4 {[%clk 0:03:00.2]} 1... d6 {[%clk 0:02:55]} 2. d4 {[%clk 0:02:58.9]} 2...
Nf6 {[%clk 0:02:54.3]} 3. Nc3 {[%clk 0:02:59.3]} 3... e5 {[%clk 0:02:52.3]} 4.
Nf3 {[%clk 0:02:53.9]} 4... Nbd7 {[%clk 0:02:51.1]} 5. Bc4 {[%clk 0:02:52.8]}
5... Be7 {[%clk 0:02:51.3]} 6. O-O {[%clk 0:02:51.3]} 6... O-O {[%clk
0:02:47.8]} 7. Re1 {[%clk 0:02:50.9]} 7... c6 {[%clk 0:02:47.9]} 8. a4 {[%clk
0:02:51]} 8... b6 {[%clk 0:02:42.5]} 9. Bg5 {[%clk 0:02:38.6]} 9... Qc7 {[%clk
0:02:36.2]} 10. Qd2 {[%clk 0:02:38.1]} 10... Bb7 {[%clk 0:02:29.8]} 11. Rad1
{[%clk 0:02:38.1]} 11... Rad8 {[%clk 0:02:24.6]} 12. h3 {[%clk 0:02:34.2]} 12...
Rfe8 {[%clk 0:02:18.2]} 13. b3 {[%clk 0:02:32.6]} 13... Bf8 {[%clk 0:02:17.9]}
14. d5 {[%clk 0:02:30.7]} 14... c5 {[%clk 0:02:00]} 15. Bb5 {[%clk 0:02:25.7]}
15... a6 {[%clk 0:01:59]} 16. Bxd7 {[%clk 0:02:25.1]} 16... Qxd7 {[%clk
0:01:50.4]} 17. Bxf6 {[%clk 0:02:25.7]} 17... gxf6 {[%clk 0:01:52.3]} 18. Nh4
{[%clk 0:02:26.3]} 18... Bc8 {[%clk 0:01:34.5]} 19. Re3 {[%clk 0:02:26]} 19...
Qe7 {[%clk 0:01:29.4]} 20. Rg3+ {[%clk 0:02:25.3]} 20... Kh8 {[%clk 0:01:30.1]}
21. Qe2 {[%clk 0:02:23.3]} 21... f5 {[%clk 0:01:30]} 22. Nxf5 {[%clk 0:02:22.5]}
22... Bxf5 {[%clk 0:01:30.6]} 23. exf5 {[%clk 0:02:23.4]} 23... Qf6 {[%clk
0:01:31.4]} 24. Ne4 {[%clk 0:02:19.5]} 24... Qh6 {[%clk 0:01:14.5]} 25. f6
{[%clk 0:02:14.9]} 25... Qh4 {[%clk 0:01:07]} 26. Rdd3 {[%clk 0:02:11]} 26...
Bh6 {[%clk 0:01:04]} 27. Rg4 {[%clk 0:02:10.8]} 27... Qh5 {[%clk 0:01:04.7]} 28.
Rg8+ {[%clk 0:02:08.3]} 1